[Event "Titled Tuesday Blitz June 27 Late 2023"]
[White "GAO"]
[Black "Reprintsev, Alexander"]
[BlackFideId "14100541"]
[WhiteElo "2365"]
[BlackElo "2484"]
[Result "0-1"]
[Round "10"]
[TimeControl "180+2"]
[Date "2023.06.27"]
[WhiteClock "0:00:34"]
[BlackClock "0:01:04"]
[Board "65"]

1. Nf3 {[%clk 0:03:00]}  d5 {[%clk 0:02:58]} 2. b3 {[%clk 0:02:58]}  Nf6 {[%clk 0:02:49]} 3. Bb2 {[%clk 0:02:59]}  Nbd7 {[%clk 0:02:47]} 4. e3 {[%clk 0:02:59]}  g6 {[%clk 0:02:46]} 5. c4 {[%clk 0:02:57]}  c6 {[%clk 0:02:43]} 6. d4 {[%clk 0:02:54]}  Bg7 {[%clk 0:02:42]} 7. Be2 {[%clk 0:02:55]}  O-O {[%clk 0:02:42]} 8. O-O {[%clk 0:02:55]}  a5 {[%clk 0:02:42]} 9. a3 {[%clk 0:02:53]}  Ne4 {[%clk 0:02:41]} 10. Nc3 {[%clk 0:02:53]}  f5 {[%clk 0:02:39]} 11. cxd5 {[%clk 0:02:50]}  Nxc3 {[%clk 0:02:39]} 12. Bxc3 {[%clk 0:02:48]}  cxd5 {[%clk 0:02:39]} 13. b4 {[%clk 0:02:46]}  a4 {[%clk 0:02:30]} 14. Rc1 {[%clk 0:02:40]}  Nb6 {[%clk 0:02:25]} 15. b5 {[%clk 0:02:35]}  Bd7 {[%clk 0:02:22]} 16. Bb4 {[%clk 0:02:34]}  Nc4 {[%clk 0:02:10]} 17. Rxc4 {[%clk 0:02:19]}  dxc4 {[%clk 0:02:10]} 18. Bxc4+ {[%clk 0:02:20]}  Kh8 {[%clk 0:02:08]} 19. Ng5 {[%clk 0:02:17]}  Qe8 {[%clk 0:01:56]} 20. Qf3 {[%clk 0:02:14]}  h6 {[%clk 0:01:54]} 21. Ne6 {[%clk 0:01:25]}  Bxe6 {[%clk 0:01:51]} 22. Bxe6 {[%clk 0:01:26]}  Qxb5 {[%clk 0:01:48]} 23. Bxe7 {[%clk 0:01:23]}  Rfe8 {[%clk 0:01:47]} 24. Bf7 {[%clk 0:01:04]}  Rxe7 {[%clk 0:01:45]} 25. Bxg6 {[%clk 0:01:04]}  Rf8 {[%clk 0:01:42]} 26. Qh5 {[%clk 0:00:58]}  Rf6 {[%clk 0:01:32]} 27. e4 {[%clk 0:00:56]}  Rxe4 {[%clk 0:01:26]} 28. Bf7 {[%clk 0:00:43]}  Rc6 {[%clk 0:01:05]} 29. Be8 {[%clk 0:00:37]}  Qxf1+ {[%clk 0:01:04]} 30. Kxf1 {[%clk 0:00:34]}  Rc1+ {[%clk 0:01:04]} 0-1


[Site "https://www.chess.com"]

[Event "Titled Tuesday Blitz June 27 Late 2023"]
[White "Andrej2004"]
[Black "JERO-8914"]
[WhiteElo "2615"]
[BlackElo "2438"]
[Result "0-1"]
[Round "10"]
[TimeControl "180+2"]
[Date "2023.06.27"]
[WhiteClock "0:01:09"]
[BlackClock "0:00:13"]
[Board "66"]

1. g3 {[%clk 0:03:00]}  Nf6 {[%clk 0:01:44]} 2. Bg2 {[%clk 0:03:01]}  e6 {[%clk 0:01:43]} 3. b3 {[%clk 0:02:44]}  d5 {[%clk 0:01:44]} 4. Bb2 {[%clk 0:02:44]}  Be7 {[%clk 0:01:43]} 5. Nf3 {[%clk 0:02:45]}  O-O {[%clk 0:01:43]} 6. O-O {[%clk 0:02:45]}  c5 {[%clk 0:01:44]} 7. d3 {[%clk 0:02:46]}  Nc6 {[%clk 0:01:44]} 8. Nbd2 {[%clk 0:02:47]}  b5 {[%clk 0:01:42]} 9. c4 {[%clk 0:02:44]}  a6 {[%clk 0:01:38]} 10. cxd5 {[%clk 0:02:43]}  exd5 {[%clk 0:01:37]} 11. e4 {[%clk 0:02:44]}  Bb7 {[%clk 0:01:34]} 12. exd5 {[%clk 0:02:41]}  Nxd5 {[%clk 0:01:33]} 13. Ne4 {[%clk 0:02:41]}  Ndb4 {[%clk 0:01:27]} 14. Ne5 {[%clk 0:02:30]}  Nxe5 {[%clk 0:01:23]} 15. Bxe5 {[%clk 0:02:31]}  Nxd3 {[%clk 0:01:23]} 16. Bc3 {[%clk 0:02:16]}  b4 {[%clk 0:01:04]} 17. Bd2 {[%clk 0:02:14]}  f5 {[%clk 0:01:02]} 18. Nf6+ {[%clk 0:01:54]}  Bxf6 {[%clk 0:00:58]} 19. Bxb7 {[%clk 0:01:55]}  Bxa1 {[%clk 0:00:56]} 20. Qxa1 {[%clk 0:01:53]}  Ra7 {[%clk 0:00:45]} 21. Bf3 {[%clk 0:01:52]}  Qd4 {[%clk 0:00:37]} 22. Qb1 {[%clk 0:01:46]}  Ne5 {[%clk 0:00:21]} 23. Bg2 {[%clk 0:01:35]}  Qxd2 {[%clk 0:00:19]} 24. Re1 {[%clk 0:01:34]}  Nd3 {[%clk 0:00:18]} 25. Rd1 {[%clk 0:01:34]}  Qxf2+ {[%clk 0:00:18]} 26. Kh1 {[%clk 0:01:34]}  Ne5 {[%clk 0:00:18]} 27. Rf1 {[%clk 0:01:30]}  Qd4 {[%clk 0:00:17]} 28. Rd1 {[%clk 0:01:30]}  Qc3 {[%clk 0:00:16]} 29. Rc1 {[%clk 0:01:30]}  Qd2 {[%clk 0:00:15]} 30. Rd1 {[%clk 0:01:30]}  Qh6 {[%clk 0:00:15]} 31. Qb2 {[%clk 0:01:29]}  Ng4 {[%clk 0:00:15]} 32. Bd5+ {[%clk 0:01:25]}  Kh8 {[%clk 0:00:14]} 33. Re1 {[%clk 0:01:26]}  Ne3 {[%clk 0:00:14]} 34. Bf3 {[%clk 0:01:23]}  Re7 {[%clk 0:00:13]} 35. Qd2 {[%clk 0:01:23]}  Rfe8 {[%clk 0:00:12]} 36. h4 {[%clk 0:01:20]}  f4 {[%clk 0:00:13]} 37. Kh2 {[%clk 0:01:11]}  fxg3+ {[%clk 0:00:12]} 38. Kxg3 {[%clk 0:01:09]}  Nf5+ {[%clk 0:00:13]} 0-1


[Site "https://www.chess.com"]

[Event "Titled Tuesday Blitz June 27 Late 2023"]
[White "Guzman Moneo, Alberto"]
[Black "lagarto93"]
[WhiteFideId "2209616"]
[WhiteElo "2394"]
[BlackElo "2573"]
[Result "0-1"]
[Round "10"]
[TimeControl "180+2"]
[Date "2023.06.27"]
[WhiteClock "0:00:01"]
[BlackClock "0:02:01"]
[Board "69"]

1. e4 {[%clk 0:03:00]}  e6 {[%clk 0:02:59]} 2. d3 {[%clk 0:03:00]}  c5 {[%clk 0:02:58]} 3. Nd2 {[%clk 0:03:01]}  Nc6 {[%clk 0:02:58]} 4. Ngf3 {[%clk 0:03:01]}  g6 {[%clk 0:02:59]} 5. g3 {[%clk 0:02:58]}  Bg7 {[%clk 0:02:59]} 6. Bg2 {[%clk 0:02:58]}  Nge7 {[%clk 0:02:59]} 7. c3 {[%clk 0:02:58]}  O-O {[%clk 0:02:59]} 8. h4 {[%clk 0:02:58]}  h6 {[%clk 0:02:59]} 9. Qe2 {[%clk 0:02:55]}  d6 {[%clk 0:02:58]} 10. Nc4 {[%clk 0:02:51]}  e5 {[%clk 0:02:58]} 11. h5 {[%clk 0:02:49]}  g5 {[%clk 0:02:57]} 12. Ne3 {[%clk 0:02:43]}  d5 {[%clk 0:02:53]} 13. exd5 {[%clk 0:02:32]}  Nxd5 {[%clk 0:02:52]} 14. Nxd5 {[%clk 0:02:19]}  Qxd5 {[%clk 0:02:51]} 15. O-O {[%clk 0:02:11]}  Bg4 {[%clk 0:02:49]} 16. Re1 {[%clk 0:02:04]}  Rad8 {[%clk 0:02:47]} 17. Be3 {[%clk 0:01:24]}  Bxh5 {[%clk 0:02:31]} 18. c4 {[%clk 0:00:59]}  Qd6 {[%clk 0:02:30]} 19. Qf1 {[%clk 0:00:51]}  Bg6 {[%clk 0:02:26]} 20. Red1 {[%clk 0:00:46]}  b6 {[%clk 0:02:26]} 21. a3 {[%clk 0:00:33]}  f5 {[%clk 0:02:22]} 22. b4 {[%clk 0:00:33]}  f4 {[%clk 0:02:21]} 23. bxc5 {[%clk 0:00:33]}  bxc5 {[%clk 0:02:21]} 24. gxf4 {[%clk 0:00:33]}  exf4 {[%clk 0:02:21]} 25. Bd2 {[%clk 0:00:31]}  g4 {[%clk 0:02:21]} 26. Nh4 {[%clk 0:00:30]}  f3 {[%clk 0:02:22]} 27. Nxg6 {[%clk 0:00:27]}  Qxg6 {[%clk 0:02:21]} 28. Bh1 {[%clk 0:00:25]}  Nd4 {[%clk 0:02:20]} 29. Re1 {[%clk 0:00:21]}  Ne2+ {[%clk 0:02:13]} 30. Rxe2 {[%clk 0:00:21]}  fxe2 {[%clk 0:02:14]} 31. Qe1 {[%clk 0:00:20]}  Bxa1 {[%clk 0:02:13]} 32. Qxa1 {[%clk 0:00:19]}  g3 {[%clk 0:02:13]} 33. f3 {[%clk 0:00:13]}  Rxd3 {[%clk 0:02:09]} 34. Qc1 {[%clk 0:00:07]}  Qh5 {[%clk 0:02:01]} 35. Bxh6 {[%clk 0:00:01]}  Qh2# {[%clk 0:02:01]} 0-1


[Site "https://www.chess.com"]

[Event "Titled Tuesday Blitz June 27 Late 2023"]
[White "Ambartsumova, Karina"]
[Black "Lowinger, Daniel"]
[WhiteFideId "4166299"]
[BlackFideId "2005557"]
[WhiteElo "2551"]
[BlackElo "2392"]
[Result "1-0"]
[Round "10"]
[TimeControl "180+2"]
[Date "2023.06.27"]
[WhiteClock "0:00:03"]
[BlackClock "0:00:00"]
[Board "70"]

1. Nf3 {[%clk 0:03:00]}  Nf6 {[%clk 0:02:59]} 2. c4 {[%clk 0:03:01]}  e6 {[%clk 0:02:59]} 3. e3 {[%clk 0:03:00]}  d5 {[%clk 0:02:56]} 4. Nc3 {[%clk 0:03:00]}  Be7 {[%clk 0:02:55]} 5. b3 {[%clk 0:03:00]}  O-O {[%clk 0:02:54]} 6. Bb2 {[%clk 0:03:00]}  b6 {[%clk 0:02:54]} 7. Qc2 {[%clk 0:03:00]}  Bb7 {[%clk 0:02:55]} 8. Be2 {[%clk 0:03:01]}  c5 {[%clk 0:02:52]} 9. cxd5 {[%clk 0:03:01]}  Nxd5 {[%clk 0:02:47]} 10. a3 {[%clk 0:03:01]}  Nd7 {[%clk 0:02:26]} 11. h4 {[%clk 0:03:00]}  f5 {[%clk 0:02:15]} 12. Bc4 {[%clk 0:02:49]}  Bf6 {[%clk 0:02:07]} 13. O-O-O {[%clk 0:02:41]}  Qe7 {[%clk 0:02:02]} 14. Rdg1 {[%clk 0:02:38]}  Rac8 {[%clk 0:01:56]} 15. Ng5 {[%clk 0:02:01]}  Ne5 {[%clk 0:01:34]} 16. Be2 {[%clk 0:01:25]}  Nb4 {[%clk 0:01:29]} 17. axb4 {[%clk 0:01:13]}  cxb4 {[%clk 0:01:28]} 18. f4 {[%clk 0:01:13]}  bxc3 {[%clk 0:01:15]} 19. dxc3 {[%clk 0:00:59]}  Nd7 {[%clk 0:00:59]} 20. Bc4 {[%clk 0:00:57]}  Nc5 {[%clk 0:00:37]} 21. Qxf5 {[%clk 0:00:44]}  g6 {[%clk 0:00:16]} 22. Qg4 {[%clk 0:00:36]}  Bxg5 {[%clk 0:00:15]} 23. Qxg5 {[%clk 0:00:36]}  Qg7 {[%clk 0:00:07]} 24. h5 {[%clk 0:00:27]}  Rf5 {[%clk 0:00:07]} 25. Qg4 {[%clk 0:00:19]}  b5 {[%clk 0:00:08]} 26. hxg6 {[%clk 0:00:11]}  bxc4 {[%clk 0:00:08]} 27. Rxh7 {[%clk 0:00:09]}  Nxb3+ {[%clk 0:00:08]} 28. Kd1 {[%clk 0:00:03]}  Rd8+ {[%clk 0:00:08]} 29. Ke1 {[%clk 0:00:03]}  Rd7 {[%clk 0:00:02]} 30. Rxg7+ {[%clk 0:00:03]}  Rxg7 {[%clk 0:00:03]} 31. Rh1 {[%clk 0:00:03]}  Be4 {[%clk 0:00:00]} 32. Qh4 {[%clk 0:00:03]} 1-0


[Site "https://www.chess.com"]

[Event "Titled Tuesday Blitz June 27 Late 2023"]
[White "Graif, William"]
[Black "micke12a"]
[WhiteFideId "2609835"]
[WhiteElo "2498"]
[BlackElo "2364"]
[Result "0-1"]
[Round "10"]
[TimeControl "180+2"]
[Date "2023.06.27"]
[WhiteClock "0:00:00"]
[BlackClock "0:00:56"]
[Board "73"]

1. e4 {[%clk 0:03:00]}  c5 {[%clk 0:02:53]} 2. Nc3 {[%clk 0:02:59]}  a6 {[%clk 0:02:47]} 3. g3 {[%clk 0:02:58]}  b5 {[%clk 0:02:47]} 4. Bg2 {[%clk 0:02:57]}  Bb7 {[%clk 0:02:47]} 5. d3 {[%clk 0:02:56]}  e6 {[%clk 0:02:46]} 6. Nh3 {[%clk 0:02:55]}  Nf6 {[%clk 0:02:46]} 7. O-O {[%clk 0:02:54]}  Be7 {[%clk 0:02:45]} 8. e5 {[%clk 0:02:33]}  Nd5 {[%clk 0:02:43]} 9. Qg4 {[%clk 0:02:16]}  Kf8 {[%clk 0:02:31]} 10. Nxd5 {[%clk 0:02:02]}  exd5 {[%clk 0:02:25]} 11. Nf4 {[%clk 0:01:53]}  Nc6 {[%clk 0:02:25]} 12. Re1 {[%clk 0:01:39]}  Nb4 {[%clk 0:02:20]} 13. Qe2 {[%clk 0:01:20]}  Bg5 {[%clk 0:02:17]} 14. c3 {[%clk 0:01:14]}  Bxf4 {[%clk 0:02:15]} 15. Bxf4 {[%clk 0:01:09]}  Nc6 {[%clk 0:02:11]} 16. Bxd5 {[%clk 0:01:09]}  Nd4 {[%clk 0:02:06]} 17. Qe4 {[%clk 0:00:48]}  Bxd5 {[%clk 0:01:55]} 18. Qxd5 {[%clk 0:00:47]}  Nc2 {[%clk 0:01:53]} 19. Qxc5+ {[%clk 0:00:35]}  Qe7 {[%clk 0:01:52]} 20. Qd5 {[%clk 0:00:32]}  Rc8 {[%clk 0:01:47]} 21. d4 {[%clk 0:00:27]}  Nxa1 {[%clk 0:01:45]} 22. Rxa1 {[%clk 0:00:27]}  Qe6 {[%clk 0:01:45]} 23. Qe4 {[%clk 0:00:25]}  d5 {[%clk 0:01:41]} 24. Qe3 {[%clk 0:00:24]}  h6 {[%clk 0:01:38]} 25. Qd3 {[%clk 0:00:22]}  g5 {[%clk 0:01:37]} 26. Bd2 {[%clk 0:00:22]}  Kg7 {[%clk 0:01:31]} 27. f4 {[%clk 0:00:21]}  gxf4 {[%clk 0:01:27]} 28. Bxf4 {[%clk 0:00:22]}  Qg6 {[%clk 0:01:24]} 29. Qd2 {[%clk 0:00:20]}  h5 {[%clk 0:01:21]} 30. Rf1 {[%clk 0:00:20]}  Rh7 {[%clk 0:01:05]} 31. Bg5 {[%clk 0:00:19]}  h4 {[%clk 0:01:04]} 32. gxh4 {[%clk 0:00:16]}  Rxh4 {[%clk 0:00:57]} 33. Kh1 {[%clk 0:00:15]}  Qe4+ {[%clk 0:00:56]} 34. Qg2 {[%clk 0:00:07]}  Qxg2+ {[%clk 0:00:55]} 35. Kxg2 {[%clk 0:00:00]}  Rg4+ {[%clk 0:00:56]} 0-1


[Site "https://www.chess.com"]

[Event "Titled Tuesday Blitz June 27 Late 2023"]
[White "The_Straightforward_Rook"]
[Black "Uzcategui Rodriguez, Alejandro"]
[BlackFideId "3903400"]
[WhiteElo "2352"]
[BlackElo "2479"]
[Result "1-0"]
[Round "10"]
[TimeControl "180+2"]
[Date "2023.06.27"]
[WhiteClock "0:00:14"]
[BlackClock "0:00:01"]
[Board "74"]

1. Nf3 {[%clk 0:03:00]}  e6 {[%clk 0:02:56]} 2. c4 {[%clk 0:02:59]}  c5 {[%clk 0:02:56]} 3. g3 {[%clk 0:02:55]}  Nf6 {[%clk 0:02:56]} 4. Bg2 {[%clk 0:02:55]}  d5 {[%clk 0:02:57]} 5. O-O {[%clk 0:02:52]}  Nc6 {[%clk 0:02:56]} 6. d3 {[%clk 0:02:46]}  d4 {[%clk 0:02:54]} 7. e3 {[%clk 0:02:45]}  Be7 {[%clk 0:02:48]} 8. exd4 {[%clk 0:02:43]}  cxd4 {[%clk 0:02:49]} 9. a3 {[%clk 0:02:38]}  a5 {[%clk 0:02:48]} 10. Re1 {[%clk 0:02:38]}  O-O {[%clk 0:02:47]} 11. Bg5 {[%clk 0:02:38]}  h6 {[%clk 0:02:46]} 12. Bxf6 {[%clk 0:02:39]}  Bxf6 {[%clk 0:02:47]} 13. Nbd2 {[%clk 0:02:38]}  g6 {[%clk 0:02:45]} 14. c5 {[%clk 0:02:34]}  Bg7 {[%clk 0:02:44]} 15. Nc4 {[%clk 0:02:32]}  Qd5 {[%clk 0:02:40]} 16. Nb6 {[%clk 0:02:30]}  Qxc5 {[%clk 0:02:38]} 17. Nxa8 {[%clk 0:02:31]}  Bd7 {[%clk 0:02:25]} 18. Rc1 {[%clk 0:02:19]}  Qa7 {[%clk 0:02:23]} 19. Nc7 {[%clk 0:02:19]}  Qb6 {[%clk 0:02:23]} 20. b4 {[%clk 0:02:06]}  axb4 {[%clk 0:02:00]} 21. axb4 {[%clk 0:02:07]}  Rc8 {[%clk 0:01:34]} 22. b5 {[%clk 0:02:04]}  Ne7 {[%clk 0:01:32]} 23. Nxe6 {[%clk 0:01:32]}  Rxc1 {[%clk 0:01:28]} 24. Qxc1 {[%clk 0:01:31]}  Bxe6 {[%clk 0:01:28]} 25. Ne5 {[%clk 0:01:25]}  Qxb5 {[%clk 0:01:22]} 26. Qc7 {[%clk 0:01:24]}  Nd5 {[%clk 0:01:20]} 27. Qd8+ {[%clk 0:01:19]}  Kh7 {[%clk 0:01:19]} 28. Nc4 {[%clk 0:01:07]}  Nc3 {[%clk 0:01:09]} 29. Qc7 {[%clk 0:01:02]}  Bxc4 {[%clk 0:00:56]} 30. dxc4 {[%clk 0:01:01]}  Qf5 {[%clk 0:00:40]} 31. Re7 {[%clk 0:00:45]}  Kg8 {[%clk 0:00:23]} 32. Qd8+ {[%clk 0:00:33]}  Kh7 {[%clk 0:00:22]} 33. Qd7 {[%clk 0:00:31]}  d3 {[%clk 0:00:17]} 34. Rxf7 {[%clk 0:00:22]}  Qe5 {[%clk 0:00:11]} 35. Qxd3 {[%clk 0:00:19]}  Ne2+ {[%clk 0:00:11]} 36. Kh1 {[%clk 0:00:19]}  Nd4 {[%clk 0:00:12]} 37. Be4 {[%clk 0:00:18]}  Qe6 {[%clk 0:00:06]} 38. Rxb7 {[%clk 0:00:15]}  Nf5 {[%clk 0:00:03]} 39. Bxf5 {[%clk 0:00:15]}  gxf5 {[%clk 0:00:04]} 40. Rd7 {[%clk 0:00:14]}  Qc6+ {[%clk 0:00:01]} 41. Rd5 {[%clk 0:00:13]}  Qa4 {[%clk 0:00:02]} 42. Qxf5+ {[%clk 0:00:13]}  Kg8 {[%clk 0:00:02]} 43. Rd8+ {[%clk 0:00:14]}  Bf8 {[%clk 0:00:01]} 44. Rxf8+ {[%clk 0:00:14]}  Kg7 {[%clk 0:00:01]} 45. Qf7# {[%clk 0:00:14]} 1-0


[Site "https://www.chess.com"]

[Event "Titled Tuesday Blitz June 27 Late 2023"]
[White "Fajdetic, Hrvoje"]
[Black "Luong Phuong Hanh"]
[WhiteFideId "14501945"]
[BlackFideId "12401013"]
[WhiteElo "2345"]
[BlackElo "2450"]
[Result "0-1"]
[Round "10"]
[TimeControl "180+2"]
[Date "2023.06.27"]
[WhiteClock "0:00:00"]
[BlackClock "0:00:27"]
[Board "77"]

1. b3 {[%clk 0:02:59]}  e5 {[%clk 0:02:58]} 2. Bb2 {[%clk 0:02:59]}  d6 {[%clk 0:02:58]} 3. e3 {[%clk 0:02:59]}  Nc6 {[%clk 0:02:58]} 4. d4 {[%clk 0:02:58]}  g6 {[%clk 0:02:57]} 5. dxe5 {[%clk 0:02:50]}  Bg7 {[%clk 0:02:57]} 6. Nf3 {[%clk 0:02:48]}  Nge7 {[%clk 0:02:56]} 7. Bb5 {[%clk 0:02:45]}  O-O {[%clk 0:02:55]} 8. O-O {[%clk 0:02:39]}  dxe5 {[%clk 0:02:48]} 9. Na3 {[%clk 0:02:01]}  a6 {[%clk 0:02:42]} 10. Bxc6 {[%clk 0:02:00]}  Nxc6 {[%clk 0:02:42]} 11. Nc4 {[%clk 0:01:59]}  Qxd1 {[%clk 0:02:15]} 12. Rfxd1 {[%clk 0:02:00]}  Bg4 {[%clk 0:02:15]} 13. h3 {[%clk 0:01:42]}  Bxf3 {[%clk 0:02:15]} 14. gxf3 {[%clk 0:01:43]}  Rad8 {[%clk 0:02:15]} 15. a4 {[%clk 0:01:35]}  b5 {[%clk 0:02:11]} 16. axb5 {[%clk 0:01:33]}  axb5 {[%clk 0:02:12]} 17. Na3 {[%clk 0:01:33]}  Nb4 {[%clk 0:01:55]} 18. Nxb5 {[%clk 0:01:28]}  Nxc2 {[%clk 0:01:55]} 19. Rac1 {[%clk 0:01:26]}  Rxd1+ {[%clk 0:01:54]} 20. Rxd1 {[%clk 0:01:26]}  c6 {[%clk 0:01:50]} 21. Na7 {[%clk 0:01:15]}  c5 {[%clk 0:01:27]} 22. Rd5 {[%clk 0:01:11]}  Nb4 {[%clk 0:01:24]} 23. Rxc5 {[%clk 0:01:00]}  Nd3 {[%clk 0:01:24]} 24. Rc2 {[%clk 0:01:00]}  Ra8 {[%clk 0:01:23]} 25. Nc6 {[%clk 0:00:56]}  Ra2 {[%clk 0:01:15]} 26. Nb4 {[%clk 0:00:20]}  Nxb4 {[%clk 0:01:08]} 27. Rc8+ {[%clk 0:00:20]}  Bf8 {[%clk 0:01:08]} 28. Bxe5 {[%clk 0:00:20]}  Rc2 {[%clk 0:01:03]} 29. Rxf8+ {[%clk 0:00:15]}  Kxf8 {[%clk 0:01:03]} 30. Bd6+ {[%clk 0:00:16]}  Ke8 {[%clk 0:01:03]} 31. Bxb4 {[%clk 0:00:16]}  Rb2 {[%clk 0:01:04]} 32. Bc5 {[%clk 0:00:15]}  Rxb3 {[%clk 0:01:04]} 33. Bd4 {[%clk 0:00:16]}  Kd7 {[%clk 0:01:03]} 34. Kg2 {[%clk 0:00:16]}  Ke6 {[%clk 0:01:04]} 35. Kg3 {[%clk 0:00:16]}  f5 {[%clk 0:01:05]} 36. h4 {[%clk 0:00:15]}  Kd5 {[%clk 0:01:04]} 37. Kf4 {[%clk 0:00:13]}  h6 {[%clk 0:01:02]} 38. h5 {[%clk 0:00:12]}  gxh5 {[%clk 0:00:56]} 39. Kxf5 {[%clk 0:00:12]}  Ra3 {[%clk 0:00:53]} 40. Kf4 {[%clk 0:00:10]}  Ra2 {[%clk 0:00:48]} 41. Kg3 {[%clk 0:00:10]}  Rd2 {[%clk 0:00:48]} 42. Bb6 {[%clk 0:00:09]}  Rd1 {[%clk 0:00:47]} 43. e4+ {[%clk 0:00:08]}  Ke6 {[%clk 0:00:46]} 44. Be3 {[%clk 0:00:08]}  Rh1 {[%clk 0:00:46]} 45. Kg2 {[%clk 0:00:06]}  Rb1 {[%clk 0:00:45]} 46. Bxh6 {[%clk 0:00:06]}  Ke5 {[%clk 0:00:43]} 47. Be3 {[%clk 0:00:04]}  Rb7 {[%clk 0:00:39]} 48. Kh3 {[%clk 0:00:04]}  Rb1 {[%clk 0:00:38]} 49. Kg2 {[%clk 0:00:03]}  Rd1 {[%clk 0:00:35]} 50. Kh3 {[%clk 0:00:03]}  Rg1 {[%clk 0:00:34]} 51. Kh2 {[%clk 0:00:04]}  Rg8 {[%clk 0:00:33]} 52. Bb6 {[%clk 0:00:03]}  Kf4 {[%clk 0:00:30]} 53. Bc7+ {[%clk 0:00:01]}  Kxf3 {[%clk 0:00:30]} 54. e5 {[%clk 0:00:01]}  Rg2+ {[%clk 0:00:27]} 55. Kh3 {[%clk 0:00:00]}  Rxf2 {[%clk 0:00:27]} 0-1


[Site "https://www.chess.com"]

[Event "Titled Tuesday Blitz June 27 Late 2023"]
[White "Kornyukov, Alexey"]
[Black "Mazurkiewicz, Michal"]
[WhiteFideId "4150457"]
[BlackFideId "1124943"]
[WhiteElo "2254"]
[BlackElo "2449"]
[Result "0-1"]
[Round "10"]
[TimeControl "180+2"]
[Date "2023.06.27"]
[WhiteClock "0:00:09"]
[BlackClock "0:00:49"]
[Board "78"]

1. d4 {[%clk 0:03:00]}  Nf6 {[%clk 0:02:59]} 2. c4 {[%clk 0:02:59]}  e5 {[%clk 0:02:59]} 3. dxe5 {[%clk 0:02:58]}  Ng4 {[%clk 0:02:59]} 4. e4 {[%clk 0:02:59]}  Nxe5 {[%clk 0:02:59]} 5. f4 {[%clk 0:02:59]}  Nec6 {[%clk 0:03:00]} 6. a3 {[%clk 0:02:57]}  Bc5 {[%clk 0:02:58]} 7. b4 {[%clk 0:02:44]}  Bd4 {[%clk 0:02:56]} 8. Ra2 {[%clk 0:02:36]}  Qe7 {[%clk 0:02:52]} 9. Nf3 {[%clk 0:02:28]}  O-O {[%clk 0:02:10]} 10. Re2 {[%clk 0:02:17]}  Ba1 {[%clk 0:01:51]} 11. Kf2 {[%clk 0:01:36]}  d6 {[%clk 0:01:49]} 12. b5 {[%clk 0:01:31]}  Nd8 {[%clk 0:01:44]} 13. Nbd2 {[%clk 0:01:20]}  g6 {[%clk 0:01:29]} 14. Nb3 {[%clk 0:01:19]}  Bg7 {[%clk 0:01:29]} 15. Qc2 {[%clk 0:01:15]}  Nd7 {[%clk 0:01:27]} 16. Bb2 {[%clk 0:01:11]}  Re8 {[%clk 0:01:23]} 17. Bxg7 {[%clk 0:01:08]}  Kxg7 {[%clk 0:01:24]} 18. h4 {[%clk 0:01:08]}  h5 {[%clk 0:01:19]} 19. Ng5 {[%clk 0:01:03]}  Nf6 {[%clk 0:01:17]} 20. Qc3 {[%clk 0:00:58]}  Kg8 {[%clk 0:01:17]} 21. Kg1 {[%clk 0:00:52]}  a6 {[%clk 0:01:13]} 22. a4 {[%clk 0:00:47]}  axb5 {[%clk 0:01:12]} 23. axb5 {[%clk 0:00:47]}  Ne6 {[%clk 0:01:12]} 24. g3 {[%clk 0:00:46]}  Nxg5 {[%clk 0:01:11]} 25. hxg5 {[%clk 0:00:45]}  Nxe4 {[%clk 0:01:10]} 26. Qf3 {[%clk 0:00:36]}  Bg4 {[%clk 0:01:07]} 27. Qxg4 {[%clk 0:00:26]}  hxg4 {[%clk 0:01:00]} 28. Reh2 {[%clk 0:00:26]}  Nxg5 {[%clk 0:00:57]} 29. fxg5 {[%clk 0:00:16]}  Qe3+ {[%clk 0:00:57]} 30. Kg2 {[%clk 0:00:12]}  Ra2+ {[%clk 0:00:56]} 31. Be2 {[%clk 0:00:10]}  Qxe2+ {[%clk 0:00:49]} 32. Kg1 {[%clk 0:00:09]}  Qe1# {[%clk 0:00:49]} 0-1


[Site "https://www.chess.com"]

[Event "Titled Tuesday Blitz June 27 Late 2023"]
[White "Mickiewicz, Piotr"]
[Black "BrandonJiang123456"]
[WhiteFideId "1114891"]
[WhiteElo "2448"]
[BlackElo "2232"]
[Result "0-1"]
[Round "10"]
[TimeControl "180+2"]
[Date "2023.06.27"]
[WhiteClock "0:00:25"]
[BlackClock "0:00:54"]
[Board "79"]

1. Nf3 {[%clk 0:03:00]}  f5 {[%clk 0:02:58]} 2. b3 {[%clk 0:03:00]}  Nf6 {[%clk 0:02:57]} 3. Bb2 {[%clk 0:03:01]}  e6 {[%clk 0:02:57]} 4. h3 {[%clk 0:02:59]}  Be7 {[%clk 0:02:57]} 5. g4 {[%clk 0:02:58]}  d6 {[%clk 0:02:53]} 6. g5 {[%clk 0:02:56]}  Nh5 {[%clk 0:02:53]} 7. h4 {[%clk 0:02:54]}  e5 {[%clk 0:02:41]} 8. d3 {[%clk 0:02:46]}  Nf4 {[%clk 0:02:40]} 9. e3 {[%clk 0:02:44]}  Ne6 {[%clk 0:02:40]} 10. c4 {[%clk 0:02:39]}  O-O {[%clk 0:02:39]} 11. Nc3 {[%clk 0:02:38]}  c6 {[%clk 0:02:38]} 12. Qc2 {[%clk 0:02:35]}  Na6 {[%clk 0:02:34]} 13. Be2 {[%clk 0:02:30]}  Nb4 {[%clk 0:02:32]} 14. Qd2 {[%clk 0:02:29]}  a5 {[%clk 0:02:32]} 15. a3 {[%clk 0:02:28]}  Na6 {[%clk 0:02:32]} 16. Rg1 {[%clk 0:02:20]}  Nac5 {[%clk 0:02:32]} 17. Qc2 {[%clk 0:02:18]}  Qb6 {[%clk 0:02:28]} 18. Nd2 {[%clk 0:02:16]}  f4 {[%clk 0:02:18]} 19. O-O-O {[%clk 0:01:40]}  fxe3 {[%clk 0:02:16]} 20. fxe3 {[%clk 0:01:40]}  a4 {[%clk 0:02:16]} 21. b4 {[%clk 0:01:36]}  Nb3+ {[%clk 0:02:17]} 22. Nxb3 {[%clk 0:01:36]}  axb3 {[%clk 0:02:17]} 23. Qd2 {[%clk 0:01:35]}  Nc7 {[%clk 0:01:55]} 24. Rg2 {[%clk 0:01:28]}  Be6 {[%clk 0:01:52]} 25. Rdg1 {[%clk 0:01:26]}  c5 {[%clk 0:01:46]} 26. Ne4 {[%clk 0:01:18]}  d5 {[%clk 0:01:42]} 27. Nf6+ {[%clk 0:01:18]}  Kh8 {[%clk 0:01:41]} 28. Nxh7 {[%clk 0:01:11]}  Kxh7 {[%clk 0:01:41]} 29. h5 {[%clk 0:01:10]}  cxb4 {[%clk 0:01:35]} 30. g6+ {[%clk 0:01:08]}  Kg8 {[%clk 0:01:35]} 31. h6 {[%clk 0:01:05]}  bxa3 {[%clk 0:01:33]} 32. h7+ {[%clk 0:01:04]}  Kh8 {[%clk 0:01:32]} 33. Bxe5 {[%clk 0:01:04]}  b2+ {[%clk 0:01:30]} 34. Kc2 {[%clk 0:01:03]}  dxc4 {[%clk 0:01:22]} 35. dxc4 {[%clk 0:00:59]}  Bf6 {[%clk 0:01:20]} 36. Qc3 {[%clk 0:00:56]}  Nd5 {[%clk 0:01:11]} 37. cxd5 {[%clk 0:00:50]}  Rac8 {[%clk 0:01:07]} 38. Bxf6 {[%clk 0:00:51]}  Rxc3+ {[%clk 0:00:59]} 39. Bxc3 {[%clk 0:00:52]}  Bxd5 {[%clk 0:00:59]} 40. Bd3 {[%clk 0:00:38]}  Qb3+ {[%clk 0:00:55]} 41. Kd2 {[%clk 0:00:38]}  Bxg2 {[%clk 0:00:54]} 42. Rxg2 {[%clk 0:00:31]}  b1=Q {[%clk 0:00:53]} 43. Bxb1 {[%clk 0:00:25]}  Qxb1 {[%clk 0:00:54]} 0-1


[Site "https://www.chess.com"]